[Event "Titled Tuesday Blitz May 30 Late 2023"]
[White "Przybylski, Wojciech"]
[Black "mohsengabr2002"]
[WhiteFideId "1117599"]
[WhiteElo "2222"]
[BlackElo "2236"]
[Result "1-0"]
[Round "11"]
[TimeControl "180+2"]
[Date "2023.05.31"]
[WhiteClock "0:01:27"]
[BlackClock "0:02:37"]

1. e4 {[%clk 0:02:46]}  f6 {[%clk 0:02:59]} 2. d4 {[%clk 0:02:44]}  g6 {[%clk 0:03:00]} 3. Nf3 {[%clk 0:02:38]}  e6 {[%clk 0:03:01]} 4. h4 {[%clk 0:02:36]}  Nh6 {[%clk 0:03:01]} 5. e5 {[%clk 0:02:28]}  Nf7 {[%clk 0:03:00]} 6. Bd3 {[%clk 0:02:23]}  Bg7 {[%clk 0:02:59]} 7. h5 {[%clk 0:02:18]}  g5 {[%clk 0:02:57]} 8. h6 {[%clk 0:02:18]}  Bxh6 {[%clk 0:02:50]} 9. Nc3 {[%clk 0:02:06]}  Bg7 {[%clk 0:02:45]} 10. Nh2 {[%clk 0:01:47]}  h6 {[%clk 0:02:44]} 11. Bg6 {[%clk 0:01:45]}  O-O {[%clk 0:02:43]} 12. Ng4 {[%clk 0:01:32]}  f5 {[%clk 0:02:38]} 13. Bxf7+ {[%clk 0:01:28]}  Rxf7 {[%clk 0:02:36]} 14. Nxh6+ {[%clk 0:01:28]}  Bxh6 {[%clk 0:02:36]} 15. Rxh6 {[%clk 0:01:29]}  Kg7 {[%clk 0:02:37]} 16. Qh5 {[%clk 0:01:27]} 1-0


[Site "https://www.chess.com"]

[Event "Titled Tuesday Blitz May 30 Late 2023"]
[White "Brown, Raehanna"]
[Black "Torres Hernandez, Leslie Carolin"]
[WhiteFideId "7402740"]
[BlackFideId "8400504"]
[WhiteElo "1655"]
[BlackElo "1920"]
[Result "1-0"]
[Round "11"]
[TimeControl "180+2"]
[Date "2023.05.31"]
[WhiteClock "0:00:18"]
[BlackClock "0:00:07"]

1. c4 {[%clk 0:02:53]}  e5 {[%clk 0:02:59]} 2. Nc3 {[%clk 0:02:52]}  Nf6 {[%clk 0:02:59]} 3. Nf3 {[%clk 0:02:52]}  Nc6 {[%clk 0:02:59]} 4. g3 {[%clk 0:02:52]}  Bc5 {[%clk 0:02:58]} 5. Bg2 {[%clk 0:02:52]}  O-O {[%clk 0:02:57]} 6. O-O {[%clk 0:02:52]}  a6 {[%clk 0:02:58]} 7. d3 {[%clk 0:02:48]}  d6 {[%clk 0:02:55]} 8. h3 {[%clk 0:02:48]}  h6 {[%clk 0:02:54]} 9. Kh2 {[%clk 0:02:46]}  Be6 {[%clk 0:02:54]} 10. e3 {[%clk 0:02:45]}  Qd7 {[%clk 0:02:49]} 11. d4 {[%clk 0:02:43]}  exd4 {[%clk 0:02:44]} 12. exd4 {[%clk 0:02:44]}  Bxc4 {[%clk 0:02:41]} 13. dxc5 {[%clk 0:02:42]}  Bxf1 {[%clk 0:02:41]} 14. Qxf1 {[%clk 0:02:31]}  dxc5 {[%clk 0:02:40]} 15. Be3 {[%clk 0:02:31]}  b6 {[%clk 0:02:31]} 16. Rd1 {[%clk 0:02:26]}  Qe6 {[%clk 0:02:28]} 17. Nd2 {[%clk 0:02:08]}  Rad8 {[%clk 0:02:28]} 18. Qxa6 {[%clk 0:02:05]}  Nd4 {[%clk 0:02:22]} 19. Nde4 {[%clk 0:01:57]}  Nc2 {[%clk 0:01:51]} 20. Rxd8 {[%clk 0:01:43]}  Rxd8 {[%clk 0:01:50]} 21. Nxf6+ {[%clk 0:01:42]}  Qxf6 {[%clk 0:01:45]} 22. Bf4 {[%clk 0:01:39]}  Nb4 {[%clk 0:01:14]} 23. Qb7 {[%clk 0:01:31]}  Nd3 {[%clk 0:01:12]} 24. Ne4 {[%clk 0:01:14]}  Qxb2 {[%clk 0:01:08]} 25. Qxc7 {[%clk 0:01:10]}  Qd4 {[%clk 0:01:03]} 26. Nd6 {[%clk 0:01:00]}  Rf8 {[%clk 0:00:59]} 27. Be3 {[%clk 0:00:58]}  Qe5 {[%clk 0:00:36]} 28. Qxb6 {[%clk 0:00:46]}  h5 {[%clk 0:00:08]} 29. Nc4 {[%clk 0:00:36]}  Qc3 {[%clk 0:00:06]} 30. Qb3 {[%clk 0:00:18]}  Qxb3 {[%clk 0:00:04]} 31. axb3 {[%clk 0:00:19]}  Rb8 {[%clk 0:00:02]} 32. Nd2 {[%clk 0:00:19]}  Rb4 {[%clk 0:00:01]} 33. Bd5 {[%clk 0:00:19]}  Kf8 {[%clk 0:00:01]} 34. Bc4 {[%clk 0:00:19]}  Rb8 {[%clk 0:00:02]} 35. Bxd3 {[%clk 0:00:18]}  Rd8 {[%clk 0:00:02]} 36. Bc4 {[%clk 0:00:17]}  f6 {[%clk 0:00:03]} 37. Bxc5+ {[%clk 0:00:17]}  Ke8 {[%clk 0:00:03]} 38. Ne4 {[%clk 0:00:18]}  f5 {[%clk 0:00:03]} 39. Nd6+ {[%clk 0:00:17]}  Kd7 {[%clk 0:00:03]} 40. Nxf5 {[%clk 0:00:17]}  g6 {[%clk 0:00:03]} 41. Ne7 {[%clk 0:00:15]}  Ra8 {[%clk 0:00:04]} 42. Nxg6 {[%clk 0:00:16]}  Ra2 {[%clk 0:00:04]} 43. Nf4 {[%clk 0:00:16]}  Rc2 {[%clk 0:00:04]} 44. Nxh5 {[%clk 0:00:15]}  Kc6 {[%clk 0:00:05]} 45. Be3 {[%clk 0:00:15]}  Kd7 {[%clk 0:00:05]} 46. Nf4 {[%clk 0:00:16]}  Ke7 {[%clk 0:00:06]} 47. h4 {[%clk 0:00:17]}  Kf6 {[%clk 0:00:06]} 48. h5 {[%clk 0:00:17]}  Kg5 {[%clk 0:00:07]} 49. Kg2 {[%clk 0:00:17]}  Kh6 {[%clk 0:00:08]} 50. Kf3 {[%clk 0:00:17]}  Rb2 {[%clk 0:00:08]} 51. Nd3+ {[%clk 0:00:17]}  Kxh5 {[%clk 0:00:07]} 52. Nxb2 {[%clk 0:00:18]} 1-0


[Site "https://www.chess.com"]

[Event "Titled Tuesday Blitz May 30 Late 2023"]
[White "Fuentes Godoy, Lilia Ivonne"]
[Black "Prieto Aranguren, Alain"]
[WhiteFideId "5104130"]
[BlackFideId "2268906"]
[WhiteElo "2096"]
[BlackElo "2209"]
[Result "0-1"]
[Round "11"]
[TimeControl "180+2"]
[Date "2023.05.31"]
[WhiteClock "0:00:03"]
[BlackClock "0:01:03"]

1. g3 {[%clk 0:02:48]}  h5 {[%clk 0:02:35]} 2. h4 {[%clk 0:02:43]}  Nh6 {[%clk 0:02:33]} 3. d4 {[%clk 0:02:41]}  Ng4 {[%clk 0:02:33]} 4. c4 {[%clk 0:02:38]}  c5 {[%clk 0:02:33]} 5. d5 {[%clk 0:02:35]}  e6 {[%clk 0:02:33]} 6. Nf3 {[%clk 0:02:35]}  exd5 {[%clk 0:02:33]} 7. cxd5 {[%clk 0:02:36]}  d6 {[%clk 0:02:33]} 8. Nc3 {[%clk 0:02:36]}  Be7 {[%clk 0:02:31]} 9. e4 {[%clk 0:02:34]}  Bf6 {[%clk 0:02:29]} 10. Bg5 {[%clk 0:02:28]}  a6 {[%clk 0:02:28]} 11. Qd2 {[%clk 0:02:13]}  Nd7 {[%clk 0:02:25]} 12. Bd3 {[%clk 0:02:07]}  Nde5 {[%clk 0:02:22]} 13. Be2 {[%clk 0:01:52]}  b5 {[%clk 0:02:18]} 14. Nxe5 {[%clk 0:01:50]}  Nxe5 {[%clk 0:02:16]} 15. f4 {[%clk 0:01:48]}  Ng4 {[%clk 0:02:12]} 16. Bxg4 {[%clk 0:01:33]}  Bxg4 {[%clk 0:02:11]} 17. e5 {[%clk 0:01:30]}  Bxg5 {[%clk 0:02:04]} 18. hxg5 {[%clk 0:01:26]}  dxe5 {[%clk 0:02:03]} 19. fxe5 {[%clk 0:01:26]}  O-O {[%clk 0:01:58]} 20. Ne4 {[%clk 0:01:22]}  Re8 {[%clk 0:01:57]} 21. O-O {[%clk 0:01:06]}  Rxe5 {[%clk 0:01:55]} 22. Rae1 {[%clk 0:01:00]}  Qxd5 {[%clk 0:01:39]} 23. Qf4 {[%clk 0:00:07]}  Rae8 {[%clk 0:01:29]} 24. Rd1 {[%clk 0:00:03]}  Qxe4 {[%clk 0:01:15]} 25. Qxf7+ {[%clk 0:00:03]}  Kh8 {[%clk 0:01:14]} 26. Rd7 {[%clk 0:00:03]}  Bxd7 {[%clk 0:01:03]} 0-1


[Site "https://www.chess.com"]

[Event "Titled Tuesday Blitz May 30 Late 2023"]
[White "Alexikov, Alexander"]
[Black "lluiss"]
[WhiteFideId "14103958"]
[WhiteElo "2186"]
[BlackElo "2300"]
[Result "1-0"]
[Round "11"]
[TimeControl "180+2"]
[Date "2023.05.31"]
[WhiteClock "0:00:56"]
[BlackClock "0:00:24"]

1. e4 {[%clk 0:02:54]}  c5 {[%clk 0:02:58]} 2. Nf3 {[%clk 0:02:53]}  d6 {[%clk 0:02:58]} 3. d4 {[%clk 0:02:53]}  cxd4 {[%clk 0:02:58]} 4. Nxd4 {[%clk 0:02:53]}  Nf6 {[%clk 0:02:58]} 5. Nc3 {[%clk 0:02:54]}  g6 {[%clk 0:02:58]} 6. Bc4 {[%clk 0:02:53]}  Bg7 {[%clk 0:02:58]} 7. f3 {[%clk 0:02:52]}  O-O {[%clk 0:02:58]} 8. Be3 {[%clk 0:02:52]}  Nc6 {[%clk 0:02:58]} 9. Qd2 {[%clk 0:02:52]}  Bd7 {[%clk 0:02:58]} 10. O-O-O {[%clk 0:02:51]}  Ne5 {[%clk 0:02:57]} 11. Bb3 {[%clk 0:02:51]}  Qa5 {[%clk 0:02:58]} 12. f4 {[%clk 0:02:45]}  Neg4 {[%clk 0:02:52]} 13. Bg1 {[%clk 0:02:44]}  Rfc8 {[%clk 0:02:51]} 14. h3 {[%clk 0:02:42]}  Nh6 {[%clk 0:01:35]} 15. Qd3 {[%clk 0:02:21]}  e5 {[%clk 0:01:20]} 16. fxe5 {[%clk 0:02:16]}  dxe5 {[%clk 0:01:20]} 17. Nf3 {[%clk 0:02:15]}  Bc6 {[%clk 0:01:19]} 18. g4 {[%clk 0:02:05]}  Rd8 {[%clk 0:01:15]} 19. Qe2 {[%clk 0:01:51]}  Rxd1+ {[%clk 0:01:14]} 20. Kxd1 {[%clk 0:01:50]}  Rd8+ {[%clk 0:01:12]} 21. Kc1 {[%clk 0:01:50]}  Nd7 {[%clk 0:00:48]} 22. g5 {[%clk 0:01:42]}  Nc5 {[%clk 0:00:44]} 23. Bxc5 {[%clk 0:01:32]}  Qxc5 {[%clk 0:00:43]} 24. gxh6 {[%clk 0:01:32]}  Bxh6+ {[%clk 0:00:43]} 25. Kb1 {[%clk 0:01:28]}  b5 {[%clk 0:00:43]} 26. a3 {[%clk 0:01:26]}  a5 {[%clk 0:00:42]} 27. Rd1 {[%clk 0:01:18]}  Rxd1+ {[%clk 0:00:41]} 28. Nxd1 {[%clk 0:01:16]}  b4 {[%clk 0:00:42]} 29. axb4 {[%clk 0:01:12]}  axb4 {[%clk 0:00:41]} 30. Nf2 {[%clk 0:01:07]}  Bf4 {[%clk 0:00:30]} 31. Qc4 {[%clk 0:00:59]}  Qxc4 {[%clk 0:00:25]} 32. Bxc4 {[%clk 0:00:58]}  Be3 {[%clk 0:00:25]} 33. Ng4 {[%clk 0:00:57]}  Bxe4 {[%clk 0:00:24]} 34. Nfxe5 {[%clk 0:00:56]} 1-0


[Site "https://www.chess.com"]

[Event "Titled Tuesday Blitz May 30 Late 2023"]
[White "Bashkansky, Ethan"]
[Black "Torres Dominguez, David"]
[WhiteFideId "2071533"]
[BlackFideId "2220857"]
[WhiteElo "2315"]
[BlackElo "1999"]
[Result "1/2-1/2"]
[Round "11"]
[TimeControl "180+2"]
[Date "2023.05.31"]
[WhiteClock "0:00:10"]
[BlackClock "0:00:10"]

1. d4 {[%clk 0:03:00]}  e5 {[%clk 0:00:46]} 2. dxe5 {[%clk 0:02:59]}  d6 {[%clk 0:00:47]} 3. Nf3 {[%clk 0:02:57]}  Bg4 {[%clk 0:00:47]} 4. Nbd2 {[%clk 0:02:53]}  Nc6 {[%clk 0:00:47]} 5. exd6 {[%clk 0:02:48]}  Bxd6 {[%clk 0:00:48]} 6. h3 {[%clk 0:02:47]}  Bh5 {[%clk 0:00:48]} 7. g4 {[%clk 0:02:42]}  Bg6 {[%clk 0:00:48]} 8. Bg2 {[%clk 0:02:43]}  Qe7 {[%clk 0:00:47]} 9. O-O {[%clk 0:02:40]}  O-O-O {[%clk 0:00:48]} 10. c3 {[%clk 0:02:35]}  h5 {[%clk 0:00:48]} 11. g5 {[%clk 0:02:32]}  Ne5 {[%clk 0:00:44]} 12. Qb3 {[%clk 0:02:21]}  c6 {[%clk 0:00:36]} 13. Nxe5 {[%clk 0:02:17]}  Bxe5 {[%clk 0:00:37]} 14. Nf3 {[%clk 0:02:17]}  Bc7 {[%clk 0:00:37]} 15. Be3 {[%clk 0:02:11]}  f6 {[%clk 0:00:34]} 16. Qa3 {[%clk 0:01:47]}  Qxa3 {[%clk 0:00:31]} 17. bxa3 {[%clk 0:01:48]}  a6 {[%clk 0:00:31]} 18. Rad1 {[%clk 0:01:41]}  Ne7 {[%clk 0:00:31]} 19. Nd4 {[%clk 0:01:33]}  Nf5 {[%clk 0:00:27]} 20. Nxf5 {[%clk 0:01:29]}  Rxd1 {[%clk 0:00:28]} 21. Rxd1 {[%clk 0:01:29]}  Bxf5 {[%clk 0:00:28]} 22. h4 {[%clk 0:01:16]}  Re8 {[%clk 0:00:25]} 23. gxf6 {[%clk 0:01:10]}  gxf6 {[%clk 0:00:26]} 24. Bf3 {[%clk 0:01:10]}  Rg8+ {[%clk 0:00:24]} 25. Kh1 {[%clk 0:01:10]}  Bg4 {[%clk 0:00:24]} 26. Rg1 {[%clk 0:01:04]}  Bxf3+ {[%clk 0:00:23]} 27. exf3 {[%clk 0:01:03]}  Rxg1+ {[%clk 0:00:24]} 28. Kxg1 {[%clk 0:01:04]}  Kd7 {[%clk 0:00:24]} 29. Kf1 {[%clk 0:00:53]}  Ke6 {[%clk 0:00:25]} 30. Ke2 {[%clk 0:00:51]}  Bd8 {[%clk 0:00:23]} 31. a4 {[%clk 0:00:49]}  f5 {[%clk 0:00:24]} 32. Bg5 {[%clk 0:00:44]}  Bxg5 {[%clk 0:00:24]} 33. hxg5 {[%clk 0:00:45]}  f4 {[%clk 0:00:25]} 34. a5 {[%clk 0:00:24]}  Kf5 {[%clk 0:00:18]} 35. Kf1 {[%clk 0:00:22]}  Kxg5 {[%clk 0:00:17]} 36. Kg2 {[%clk 0:00:22]}  c5 {[%clk 0:00:16]} 37. Kh2 {[%clk 0:00:17]}  Kh4 {[%clk 0:00:16]} 38. Kg2 {[%clk 0:00:17]}  Kg5 {[%clk 0:00:16]} 39. Kh2 {[%clk 0:00:16]}  c4 {[%clk 0:00:16]} 40. Kh3 {[%clk 0:00:13]}  h4 {[%clk 0:00:15]} 41. Kh2 {[%clk 0:00:13]}  Kh5 {[%clk 0:00:16]} 42. Kh3 {[%clk 0:00:13]}  Kg5 {[%clk 0:00:16]} 43. Kh2 {[%clk 0:00:13]}  Kg6 {[%clk 0:00:15]} 44. Kh3 {[%clk 0:00:13]}  Kh5 {[%clk 0:00:15]} 45. Kh2 {[%clk 0:00:14]}  Kg5 {[%clk 0:00:14]} 46. Kh3 {[%clk 0:00:15]}  Kh5 {[%clk 0:00:11]} 47. Kh2 {[%clk 0:00:15]}  Kg5 {[%clk 0:00:11]} 48. Kg2 {[%clk 0:00:14]}  Kh5 {[%clk 0:00:11]} 49. Kh1 {[%clk 0:00:14]}  Kg5 {[%clk 0:00:11]} 50. Kg2 {[%clk 0:00:14]}  Kh5 {[%clk 0:00:12]} 51. Kg1 {[%clk 0:00:13]}  Kg5 {[%clk 0:00:13]} 52. Kh1 {[%clk 0:00:12]}  Kh5 {[%clk 0:00:13]} 53. Kg1 {[%clk 0:00:12]}  h3 {[%clk 0:00:13]} 54. Kh2 {[%clk 0:00:12]}  Kh6 {[%clk 0:00:10]} 55. Kxh3 {[%clk 0:00:12]}  Kg5 {[%clk 0:00:11]} 56. Kg2 {[%clk 0:00:11]}  Kh4 {[%clk 0:00:10]} 57. Kh2 {[%clk 0:00:12]}  Kh5 {[%clk 0:00:09]} 58. Kh3 {[%clk 0:00:09]}  Kg5 {[%clk 0:00:10]} 59. Kg2 {[%clk 0:00:09]}  Kh4 {[%clk 0:00:10]} 60. Kg1 {[%clk 0:00:08]}  Kh3 {[%clk 0:00:10]} 61. Kh1 {[%clk 0:00:08]}  Kh4 {[%clk 0:00:10]} 62. Kh2 {[%clk 0:00:08]}  Kh5 {[%clk 0:00:10]} 63. Kh1 {[%clk 0:00:08]}  Kh4 {[%clk 0:00:10]} 64. Kg1 {[%clk 0:00:09]}  Kh3 {[%clk 0:00:10]} 65. Kh1 {[%clk 0:00:10]}  Kh4 {[%clk 0:00:10]} 1/2-1/2


[Site "https://www.chess.com"]

[Event "Titled Tuesday Blitz May 30 Late 2023"]
[White "Carrasco Miranda, Andres"]
[Black "Martinez, Ayelen"]
[WhiteFideId "3405990"]
[BlackFideId "118702"]
[WhiteElo "2183"]
[BlackElo "2125"]
[Result "1-0"]
[Round "11"]
[TimeControl "180+2"]
[Date "2023.05.31"]
[WhiteClock "0:00:14"]
[BlackClock "0:00:15"]

1. d4 {[%clk 0:02:47]}  Nf6 {[%clk 0:02:59]} 2. c4 {[%clk 0:02:45]}  g6 {[%clk 0:02:59]} 3. g3 {[%clk 0:02:45]}  Bg7 {[%clk 0:02:59]} 4. Bg2 {[%clk 0:02:46]}  O-O {[%clk 0:02:59]} 5. Nc3 {[%clk 0:02:46]}  d6 {[%clk 0:03:00]} 6. Nf3 {[%clk 0:02:47]}  c5 {[%clk 0:02:57]} 7. dxc5 {[%clk 0:02:45]}  dxc5 {[%clk 0:02:54]} 8. O-O {[%clk 0:02:45]}  Nc6 {[%clk 0:02:52]} 9. Be3 {[%clk 0:02:45]}  Qa5 {[%clk 0:02:42]} 10. Qb3 {[%clk 0:02:42]}  Be6 {[%clk 0:02:37]} 11. Qxb7 {[%clk 0:02:30]}  Rac8 {[%clk 0:02:04]} 12. Qb5 {[%clk 0:02:27]}  Qb4 {[%clk 0:01:54]} 13. Ng5 {[%clk 0:02:16]}  Qxb5 {[%clk 0:01:46]} 14. cxb5 {[%clk 0:02:14]}  Nd4 {[%clk 0:01:41]} 15. Nxe6 {[%clk 0:02:11]}  fxe6 {[%clk 0:01:41]} 16. a4 {[%clk 0:01:56]}  Ng4 {[%clk 0:01:37]} 17. Bh3 {[%clk 0:01:29]}  h5 {[%clk 0:01:25]} 18. Bxg4 {[%clk 0:01:27]}  hxg4 {[%clk 0:01:26]} 19. Rfd1 {[%clk 0:01:25]}  Nc2 {[%clk 0:01:23]} 20. Rac1 {[%clk 0:01:22]}  Nxe3 {[%clk 0:01:21]} 21. fxe3 {[%clk 0:01:23]}  Bh6 {[%clk 0:01:22]} 22. Rc2 {[%clk 0:00:50]}  Bxe3+ {[%clk 0:01:21]} 23. Kh1 {[%clk 0:00:50]}  Rf5 {[%clk 0:01:13]} 24. Ne4 {[%clk 0:00:48]}  Rcf8 {[%clk 0:01:11]} 25. Kg2 {[%clk 0:00:20]}  Re5 {[%clk 0:01:01]} 26. Rc4 {[%clk 0:00:20]}  Bd4 {[%clk 0:00:58]} 27. e3 {[%clk 0:00:17]}  Bxe3 {[%clk 0:00:55]} 28. Rf1 {[%clk 0:00:16]}  Rd8 {[%clk 0:00:49]} 29. Re1 {[%clk 0:00:16]}  Bd4 {[%clk 0:00:48]} 30. Re2 {[%clk 0:00:17]}  Rf8 {[%clk 0:00:45]} 31. a5 {[%clk 0:00:17]}  Kg7 {[%clk 0:00:38]} 32. b4 {[%clk 0:00:16]}  Rh5 {[%clk 0:00:28]} 33. bxc5 {[%clk 0:00:13]}  Be5 {[%clk 0:00:24]} 34. c6 {[%clk 0:00:12]}  Bc7 {[%clk 0:00:23]} 35. b6 {[%clk 0:00:12]}  axb6 {[%clk 0:00:23]} 36. axb6 {[%clk 0:00:13]}  Bxb6 {[%clk 0:00:23]} 37. c7 {[%clk 0:00:13]}  Rc8 {[%clk 0:00:23]} 38. Rec2 {[%clk 0:00:14]}  Rch8 {[%clk 0:00:21]} 39. h4 {[%clk 0:00:14]}  gxh3+ {[%clk 0:00:21]} 40. Kh2 {[%clk 0:00:14]}  Rc8 {[%clk 0:00:19]} 41. Nf2 {[%clk 0:00:13]}  Bxf2 {[%clk 0:00:18]} 42. Rxf2 {[%clk 0:00:14]}  Rd5 {[%clk 0:00:17]} 43. Rfc2 {[%clk 0:00:14]}  Rd7 {[%clk 0:00:16]} 44. Kxh3 {[%clk 0:00:14]}  Kf6 {[%clk 0:00:17]} 45. Kg4 {[%clk 0:00:14]}  Ke5 {[%clk 0:00:17]} 46. Kg5 {[%clk 0:00:15]}  Kd5 {[%clk 0:00:16]} 47. Kxg6 {[%clk 0:00:15]}  e5 {[%clk 0:00:15]} 48. Kf7 {[%clk 0:00:15]}  e6+ {[%clk 0:00:15]} 49. Kf6 {[%clk 0:00:14]}  Rf8+ {[%clk 0:00:16]} 50. Kg5 {[%clk 0:00:15]}  Rc8 {[%clk 0:00:16]} 51. Rc5+ {[%clk 0:00:15]}  Kd6 {[%clk 0:00:16]} 52. Rc6+ {[%clk 0:00:15]}  Ke7 {[%clk 0:00:16]} 53. Kg4 {[%clk 0:00:14]}  e4 {[%clk 0:00:16]} 54. Kf4 {[%clk 0:00:14]}  Rf8+ {[%clk 0:00:16]} 55. Kxe4 {[%clk 0:00:15]}  Rc8 {[%clk 0:00:16]} 56. g4 {[%clk 0:00:14]}  Rd5 {[%clk 0:00:16]} 57. Rh2 {[%clk 0:00:14]}  Kd7 {[%clk 0:00:15]} 58. Rcc2 {[%clk 0:00:13]}  Rxc7 {[%clk 0:00:15]} 59. Rh7+ {[%clk 0:00:13]}  Kd6 {[%clk 0:00:15]} 60. Rhxc7 {[%clk 0:00:14]}  Re5+ {[%clk 0:00:15]} 61. Kf4 {[%clk 0:00:14]}  Rd5 {[%clk 0:00:15]} 62. R2c6# {[%clk 0:00:14]} 1-0


[Site "https://www.chess.com"]

[Event "Titled Tuesday Blitz May 30 Late 2023"]
[White "Talbi, Chafik"]
[Black "zano2023"]
[WhiteFideId "7903715"]
[WhiteElo "2186"]
[BlackElo "2189"]
[Result "1-0"]
[Round "11"]
[TimeControl "180+2"]
[Date "2023.05.31"]
[WhiteClock "0:01:09"]
[BlackClock "0:00:25"]

1. e4 {[%clk 0:02:59]}  e5 {[%clk 0:02:59]} 2. Nf3 {[%clk 0:02:59]}  d6 {[%clk 0:03:00]} 3. d4 {[%clk 0:02:58]}  f5 {[%clk 0:03:00]} 4. Nc3 {[%clk 0:02:55]}  Nf6 {[%clk 0:02:59]} 5. dxe5 {[%clk 0:02:54]}  Nxe4 {[%clk 0:02:59]} 6. Bb5+ {[%clk 0:02:33]}  c6 {[%clk 0:02:54]} 7. Bd3 {[%clk 0:02:23]}  d5 {[%clk 0:02:34]} 8. O-O {[%clk 0:02:22]}  Be7 {[%clk 0:02:24]} 9. Nd4 {[%clk 0:02:13]}  O-O {[%clk 0:02:19]} 10. f3 {[%clk 0:02:07]}  Nc5 {[%clk 0:01:51]} 11. Be2 {[%clk 0:01:50]}  Ne6 {[%clk 0:01:45]} 12. Nxe6 {[%clk 0:01:46]}  Bxe6 {[%clk 0:01:44]} 13. f4 {[%clk 0:01:45]}  d4 {[%clk 0:01:37]} 14. Nb1 {[%clk 0:01:44]}  Bc5 {[%clk 0:01:36]} 15. Kh1 {[%clk 0:01:43]}  Qh4 {[%clk 0:01:25]} 16. Nd2 {[%clk 0:01:40]}  Rd8 {[%clk 0:01:21]} 17. Nf3 {[%clk 0:01:38]}  Qh6 {[%clk 0:01:21]} 18. Ng5 {[%clk 0:01:34]}  Bd5 {[%clk 0:01:19]} 19. Bf3 {[%clk 0:01:32]}  Bxf3 {[%clk 0:01:11]} 20. Qxf3 {[%clk 0:01:32]}  Be7 {[%clk 0:01:12]} 21. Qb3+ {[%clk 0:01:31]}  Rd5 {[%clk 0:01:07]} 22. Qxb7 {[%clk 0:01:27]}  Bxg5 {[%clk 0:01:05]} 23. fxg5 {[%clk 0:01:26]}  Qh5 {[%clk 0:00:58]} 24. Qxa8 {[%clk 0:01:25]}  Rd8 {[%clk 0:00:56]} 25. Qxa7 {[%clk 0:01:22]}  Qe2 {[%clk 0:00:54]} 26. Bf4 {[%clk 0:01:21]}  Qxc2 {[%clk 0:00:42]} 27. e6 {[%clk 0:01:19]}  Qe4 {[%clk 0:00:29]} 28. Rae1 {[%clk 0:01:11]}  Qd5 {[%clk 0:00:29]} 29. Bxb8 {[%clk 0:01:10]}  Re8 {[%clk 0:00:25]} 30. Qf7+ {[%clk 0:01:09]} 1-0


[Site "https://www.chess.com"]

[Event "Titled Tuesday Blitz May 30 Late 2023"]
[White "Gerbelli Neto, Eduardo"]
[Black "Horokoskii"]
[WhiteFideId "2103281"]
[WhiteElo "2178"]
[BlackElo "2139"]
[Result "1/2-1/2"]
[Round "11"]
[TimeControl "180+2"]
[Date "2023.05.31"]
[WhiteClock "0:00:16"]
[BlackClock "0:00:10"]

1. e4 {[%clk 0:03:00]}  e6 {[%clk 0:02:54]} 2. d4 {[%clk 0:03:00]}  d5 {[%clk 0:02:54]} 3. Nc3 {[%clk 0:03:01]}  Nf6 {[%clk 0:02:53]} 4. e5 {[%clk 0:03:01]}  Nfd7 {[%clk 0:02:53]} 5. Nf3 {[%clk 0:03:01]}  c5 {[%clk 0:02:54]} 6. dxc5 {[%clk 0:03:02]}  Bxc5 {[%clk 0:02:53]} 7. Bd3 {[%clk 0:03:01]}  Nc6 {[%clk 0:02:52]} 8. Bf4 {[%clk 0:03:00]}  h6 {[%clk 0:02:51]} 9. h4 {[%clk 0:02:55]}  Qc7 {[%clk 0:02:48]} 10. Qe2 {[%clk 0:02:54]}  a6 {[%clk 0:02:47]} 11. O-O {[%clk 0:02:48]}  b5 {[%clk 0:02:39]} 12. a3 {[%clk 0:02:47]}  Ne7 {[%clk 0:02:26]} 13. h5 {[%clk 0:02:42]}  Bxa3 {[%clk 0:02:22]} 14. Rxa3 {[%clk 0:02:24]}  b4 {[%clk 0:02:22]} 15. Rb3 {[%clk 0:02:23]}  bxc3 {[%clk 0:02:20]} 16. Rxc3 {[%clk 0:02:23]}  Qb6 {[%clk 0:02:16]} 17. b3 {[%clk 0:02:17]}  O-O {[%clk 0:02:14]} 18. Qd2 {[%clk 0:02:06]}  Nc5 {[%clk 0:01:58]} 19. Bxh6 {[%clk 0:02:03]}  Nxd3 {[%clk 0:01:52]} 20. Rxd3 {[%clk 0:01:56]}  gxh6 {[%clk 0:01:48]} 21. Qxh6 {[%clk 0:01:54]}  Nf5 {[%clk 0:01:48]} 22. Qg5+ {[%clk 0:01:54]}  Kh8 {[%clk 0:01:48]} 23. Qf6+ {[%clk 0:01:53]}  Kg8 {[%clk 0:01:48]} 24. Nd4 {[%clk 0:01:39]}  Qd8 {[%clk 0:01:32]} 25. Qxd8 {[%clk 0:00:47]}  Rxd8 {[%clk 0:01:33]} 26. Nc6 {[%clk 0:00:48]}  Rd7 {[%clk 0:01:26]} 27. g4 {[%clk 0:00:47]}  Ne7 {[%clk 0:01:25]} 28. Nd4 {[%clk 0:00:46]}  a5 {[%clk 0:01:23]} 29. Rg3 {[%clk 0:00:42]}  Ba6 {[%clk 0:01:22]} 30. Ra1 {[%clk 0:00:42]}  Bb7 {[%clk 0:01:16]} 31. f4 {[%clk 0:00:42]}  Nc6 {[%clk 0:01:16]} 32. Nb5 {[%clk 0:00:41]}  Ba6 {[%clk 0:01:09]} 33. Nd6 {[%clk 0:00:41]}  Nd4 {[%clk 0:01:07]} 34. Kh2 {[%clk 0:00:31]}  Nxc2 {[%clk 0:01:06]} 35. Rc1 {[%clk 0:00:30]}  Nd4 {[%clk 0:00:59]} 36. Rb1 {[%clk 0:00:21]}  Ne2 {[%clk 0:00:56]} 37. Rf3 {[%clk 0:00:20]}  Rc7 {[%clk 0:00:52]} 38. f5 {[%clk 0:00:20]}  Nd4 {[%clk 0:00:50]} 39. Rf2 {[%clk 0:00:20]}  exf5 {[%clk 0:00:45]} 40. gxf5 {[%clk 0:00:20]}  Bd3 {[%clk 0:00:41]} 41. Rg1+ {[%clk 0:00:20]}  Kh8 {[%clk 0:00:40]} 42. f6 {[%clk 0:00:18]}  Rg8 {[%clk 0:00:34]} 43. Rd1 {[%clk 0:00:17]}  Nf3+ {[%clk 0:00:21]} 44. Rxf3 {[%clk 0:00:17]}  Be2 {[%clk 0:00:21]} 45. Rdf1 {[%clk 0:00:17]}  Bxf3 {[%clk 0:00:21]} 46. Rxf3 {[%clk 0:00:17]}  Rc2+ {[%clk 0:00:21]} 47. Kh3 {[%clk 0:00:18]}  Rc1 {[%clk 0:00:15]} 48. Nxf7+ {[%clk 0:00:18]}  Kh7 {[%clk 0:00:16]} 49. Kh2 {[%clk 0:00:16]}  Rc2+ {[%clk 0:00:15]} 50. Kh3 {[%clk 0:00:16]}  Rc1 {[%clk 0:00:15]} 51. Rf2 {[%clk 0:00:17]}  Rc3+ {[%clk 0:00:12]} 52. Kh2 {[%clk 0:00:16]}  Rxb3 {[%clk 0:00:12]} 53. e6 {[%clk 0:00:16]}  Rb4 {[%clk 0:00:12]} 54. Rf3 {[%clk 0:00:15]}  Rb2+ {[%clk 0:00:11]} 55. Kh3 {[%clk 0:00:15]}  Rb1 {[%clk 0:00:11]} 56. Rf2 {[%clk 0:00:15]}  Rb3+ {[%clk 0:00:11]} 57. Kh2 {[%clk 0:00:16]}  Rb4 {[%clk 0:00:11]} 58. Kh1 {[%clk 0:00:16]}  Rb1+ {[%clk 0:00:10]} 59. Kh2 {[%clk 0:00:16]}  Rb4 {[%clk 0:00:10]} 1/2-1/2


[Site "https://www.chess.com"]